[Event "*** Titled Tuesday Blitz"]
[Site "Chess.com"]
[Date "2020.12.29"]
[Round "6"]
[White "MokshanovAlexey"]
[Black "jacky72"]
[Result "1-0"]
[WhiteElo "2642"]
[BlackElo "2784"]
[TimeControl "180+1"]
[EndTime "11:04:51 PST"]
[Termination "MokshanovAlexey won by resignation"]

1. e4 {[%clk 0:03:00.9]} 1... e5 {[%clk 0:02:59.7]} 2. Nf3 {[%clk 0:03:00.5]}
2... Nc6 {[%clk 0:03:00.3]} 3. d4 {[%clk 0:03:00.7]} 3... exd4 {[%clk
0:03:00.4]} 4. Nxd4 {[%clk 0:03:01.6]} 4... Nf6 {[%clk 0:03:01]} 5. Nxc6 {[%clk
0:03:00.2]} 5... bxc6 {[%clk 0:03:01.9]} 6. e5 {[%clk 0:03:00.7]} 6... Qe7
{[%clk 0:03:02.5]} 7. Qe2 {[%clk 0:03:01.1]} 7... Nd5 {[%clk 0:03:03.2]} 8. c4
{[%clk 0:03:01.4]} 8... Nb6 {[%clk 0:03:03.9]} 9. Nc3 {[%clk 0:02:59.1]} 9... a5
{[%clk 0:03:04.2]} 10. Qe4 {[%clk 0:02:46.7]} 10... Ba6 {[%clk 0:03:02.9]} 11.
Bd3 {[%clk 0:02:40.6]} 11... g6 {[%clk 0:03:03]} 12. O-O {[%clk 0:02:39.4]}
12... Bg7 {[%clk 0:03:03.4]} 13. f4 {[%clk 0:02:39.4]} 13... Nxc4 {[%clk
0:02:48.9]} 14. Kh1 {[%clk 0:02:28.5]} 14... Nb6 {[%clk 0:02:44.9]} 15. Bxa6
{[%clk 0:02:28.2]} 15... Rxa6 {[%clk 0:02:45.8]} 16. Be3 {[%clk 0:02:22.8]}
16... O-O {[%clk 0:02:44.3]} 17. Rfd1 {[%clk 0:02:21.2]} 17... d5 {[%clk
0:02:38.3]} 18. exd6 {[%clk 0:02:19.8]} 18... Qxe4 {[%clk 0:02:34.8]} 19. Nxe4
{[%clk 0:02:20]} 19... cxd6 {[%clk 0:02:35.4]} 20. Rxd6 {[%clk 0:02:00.1]} 20...
Nc4 {[%clk 0:02:28.7]} 21. Rd3 {[%clk 0:01:49.3]} 21... Nxb2 {[%clk 0:02:24.3]}
22. Rd7 {[%clk 0:01:47.2]} 22... Re8 {[%clk 0:02:09]} 23. Bd4 {[%clk 0:01:36.6]}
23... Bxd4 {[%clk 0:01:42.7]} 24. Rxd4 {[%clk 0:01:35.9]} 24... Kg7 {[%clk
0:01:43.3]} 25. Rb1 {[%clk 0:01:28.3]} 25... Nd3 {[%clk 0:01:43.5]} 26. Nd6
{[%clk 0:01:21.9]} 26... Re3 {[%clk 0:01:35.5]} 27. Nc4 {[%clk 0:00:59.1]} 27...
Nf2+ {[%clk 0:01:15.7]} 28. Kg1 {[%clk 0:00:58.3]} 28... Rd3 {[%clk 0:01:16.6]}
29. Rd6 {[%clk 0:00:38.8]} 29... Rxd6 {[%clk 0:01:06.7]} 30. Nxd6 {[%clk
0:00:38.8]} 30... Ng4 {[%clk 0:01:00.5]} 31. Rb7 {[%clk 0:00:36.9]} 31... Nh6
{[%clk 0:01:01]} 32. Ne8+ {[%clk 0:00:34.5]} 32... Kf8 {[%clk 0:01:01.1]} 33.
Nc7 {[%clk 0:00:34.8]} 33... Ra7 {[%clk 0:00:54]} 34. Rxa7 {[%clk 0:00:34.1]}
1-0

[Event "*** Titled Tuesday Blitz"]
[Site "Chess.com"]
[Date "2020.12.29"]
[Round "6"]
[White "stanyga"]
[Black "Ladislav1969"]
[Result "1-0"]
[WhiteElo "2605"]
[BlackElo "2404"]
[TimeControl "180+1"]
[EndTime "11:04:51 PST"]
[Termination "stanyga won by resignation"]

1. d4 {[%clk 0:03:00.9]} 1... Nf6 {[%clk 0:02:59.5]} 2. c4 {[%clk 0:03:01]} 2...
g6 {[%clk 0:03:00.4]} 3. Nc3 {[%clk 0:02:59.5]} 3... d5 {[%clk 0:03:00.9]} 4.
cxd5 {[%clk 0:02:59]} 4... Nxd5 {[%clk 0:03:01.8]} 5. e4 {[%clk 0:02:59.4]} 5...
Nxc3 {[%clk 0:03:02.5]} 6. bxc3 {[%clk 0:03:00]} 6... c5 {[%clk 0:03:03.4]} 7.
Nf3 {[%clk 0:02:59.3]} 7... Bg7 {[%clk 0:03:04]} 8. Be3 {[%clk 0:02:57.7]} 8...
Bg4 {[%clk 0:03:03.8]} 9. Rc1 {[%clk 0:02:40.9]} 9... cxd4 {[%clk 0:02:44.9]}
10. cxd4 {[%clk 0:02:38.3]} 10... O-O {[%clk 0:02:44.9]} 11. Be2 {[%clk
0:02:31.1]} 11... Nc6 {[%clk 0:02:45]} 12. d5 {[%clk 0:02:26.1]} 12... Nb4
{[%clk 0:02:33.9]} 13. Qb3 {[%clk 0:02:11.8]} 13... Qa5 {[%clk 0:02:31.4]} 14.
Bd2 {[%clk 0:02:04.2]} 14... Qxa2 {[%clk 0:01:56.8]} 15. Qxb4 {[%clk 0:01:57]}
15... Rfc8 {[%clk 0:01:45.2]} 16. Bc4 {[%clk 0:01:33.8]} 16... Qb2 {[%clk
0:01:35.9]} 17. Qxb2 {[%clk 0:01:29.6]} 17... Bxb2 {[%clk 0:01:35.4]} 18. Rc2
{[%clk 0:01:17.4]} 18... Bg7 {[%clk 0:01:28.6]} 19. Ke2 {[%clk 0:01:11.4]} 19...
a6 {[%clk 0:01:28.4]} 20. Rb1 {[%clk 0:01:05]} 20... b5 {[%clk 0:01:28.2]} 21.
Bd3 {[%clk 0:01:04.7]} 21... Bd7 {[%clk 0:01:19.3]} 22. Ba5 {[%clk 0:00:58.3]}
22... e6 {[%clk 0:01:09]} 23. d6 {[%clk 0:00:51.5]} 23... Rab8 {[%clk
0:00:47.6]} 24. Rc7 {[%clk 0:00:46.2]} 24... Rxc7 {[%clk 0:00:39.2]} 25. dxc7
{[%clk 0:00:45.9]} 25... Rb7 {[%clk 0:00:36.4]} 26. Rc1 {[%clk 0:00:43.5]} 26...
Bc8 {[%clk 0:00:35]} 27. e5 {[%clk 0:00:43.1]} 1-0

[Event "*** Titled Tuesday Blitz"]
[Site "Chess.com"]
[Date "2020.12.29"]
[Round "6"]
[White "Efremov_Vlad"]
[Black "MFBerna"]
[Result "1-0"]
[WhiteElo "2278"]
[BlackElo "2438"]
[TimeControl "180+1"]
[EndTime "11:04:51 PST"]
[Termination "Efremov_Vlad won by resignation"]

1. d4 {[%clk 0:03:00.9]} 1... d5 {[%clk 0:03:00.4]} 2. c4 {[%clk 0:02:59.5]}
2... c6 {[%clk 0:02:59.1]} 3. Nf3 {[%clk 0:02:59.2]} 3... Nf6 {[%clk 0:02:55.3]}
4. Qb3 {[%clk 0:02:58.9]} 4... dxc4 {[%clk 0:02:52.1]} 5. Qxc4 {[%clk
0:02:59.8]} 5... b5 {[%clk 0:02:47.3]} 6. Qc2 {[%clk 0:02:57.3]} 6... Bb7 {[%clk
0:02:41.3]} 7. Bg5 {[%clk 0:02:49.5]} 7... e6 {[%clk 0:02:40.2]} 8. e4 {[%clk
0:02:43]} 8... Be7 {[%clk 0:02:38.8]} 9. Nbd2 {[%clk 0:02:41.3]} 9... Nbd7
{[%clk 0:02:37.9]} 10. Be2 {[%clk 0:02:21.7]} 10... O-O {[%clk 0:02:37.2]} 11.
O-O {[%clk 0:02:21.7]} 11... Rc8 {[%clk 0:02:33.7]} 12. Rac1 {[%clk 0:02:17.4]}
12... a6 {[%clk 0:02:28.9]} 13. Nb3 {[%clk 0:02:08.4]} 13... c5 {[%clk
0:02:25.4]} 14. e5 {[%clk 0:01:25.8]} 14... Nd5 {[%clk 0:02:09.2]} 15. Bxe7
{[%clk 0:01:23.5]} 15... Qxe7 {[%clk 0:02:10.1]} 16. Nxc5 {[%clk 0:01:19.7]}
16... Nxc5 {[%clk 0:02:09.8]} 17. dxc5 {[%clk 0:01:20.6]} 17... Nf4 {[%clk
0:02:10.6]} 18. b4 {[%clk 0:01:18.5]} 18... Rfd8 {[%clk 0:02:06.7]} 19. Rcd1
{[%clk 0:01:15.7]} 19... Bd5 {[%clk 0:01:54.6]} 20. Rfe1 {[%clk 0:01:07.1]}
20... Qb7 {[%clk 0:01:52.1]} 21. Rd4 {[%clk 0:00:49.5]} 21... Nxe2+ {[%clk
0:01:51.3]} 22. Qxe2 {[%clk 0:00:48.2]} 22... Bxf3 {[%clk 0:01:51.3]} 23. Rxd8+
{[%clk 0:00:47.5]} 23... Rxd8 {[%clk 0:01:52.2]} 24. Qxf3 {[%clk 0:00:48]} 24...
Qxf3 {[%clk 0:01:52.3]} 25. gxf3 {[%clk 0:00:48.9]} 25... Rd4 {[%clk 0:01:50.2]}
26. Rc1 {[%clk 0:00:45.3]} 26... Rd7 {[%clk 0:01:42.2]} 27. c6 {[%clk
0:00:34.6]} 27... Rc7 {[%clk 0:01:42.5]} 28. Kf1 {[%clk 0:00:35.2]} 28... Kf8
{[%clk 0:01:43]} 29. Ke2 {[%clk 0:00:35.7]} 29... Ke7 {[%clk 0:01:43.5]} 30. Ke3
{[%clk 0:00:36.3]} 30... g5 {[%clk 0:01:43.3]} 31. Kd4 {[%clk 0:00:36.3]} 31...
Kd8 {[%clk 0:01:40]} 32. Kc5 {[%clk 0:00:35.3]} 32... Kc8 {[%clk 0:01:40.5]} 33.
Rd1 {[%clk 0:00:32.9]} 33... f6 {[%clk 0:01:36.4]} 34. Rd6 {[%clk 0:00:26.8]}
34... fxe5 {[%clk 0:01:31.5]} 35. Rxe6 {[%clk 0:00:26.7]} 35... Rf7 {[%clk
0:01:32.4]} 36. Kb6 {[%clk 0:00:21.1]} 36... Rf8 {[%clk 0:01:32.5]} 37. Rxe5
{[%clk 0:00:20.4]} 37... h6 {[%clk 0:01:32.5]} 38. Re6 {[%clk 0:00:18.6]} 38...
h5 {[%clk 0:01:32.5]} 39. Rh6 {[%clk 0:00:18.6]} 39... h4 {[%clk 0:01:31.1]} 40.
Rg6 {[%clk 0:00:18.6]} 1-0

[Event "*** Titled Tuesday Blitz"]
[Site "Chess.com"]
[Date "2020.12.29"]
[Round "6"]
[White "champ2005"]
[Black "swisspower96"]
[Result "1-0"]
[WhiteElo "2988"]
[BlackElo "2664"]
[TimeControl "180+1"]
[EndTime "11:04:56 PST"]
[Termination "champ2005 won on time"]

1. d4 {[%clk 0:03:00.9]} 1... Nf6 {[%clk 0:02:58.6]} 2. Bf4 {[%clk 0:02:59.3]}
2... d5 {[%clk 0:02:58.1]} 3. e3 {[%clk 0:02:58.7]} 3... c5 {[%clk 0:02:58.5]}
4. c3 {[%clk 0:02:58.5]} 4... Nc6 {[%clk 0:02:58.1]} 5. Nd2 {[%clk 0:02:58.3]}
5... cxd4 {[%clk 0:02:46.6]} 6. exd4 {[%clk 0:02:57.3]} 6... Bf5 {[%clk
0:02:46.8]} 7. Ngf3 {[%clk 0:02:55.9]} 7... e6 {[%clk 0:02:47.2]} 8. Qb3 {[%clk
0:02:52.9]} 8... Bd6 {[%clk 0:02:47]} 9. Bxd6 {[%clk 0:02:47]} 9... Qxd6 {[%clk
0:02:46.9]} 10. Be2 {[%clk 0:02:44.7]} 10... O-O {[%clk 0:02:45.4]} 11. O-O
{[%clk 0:02:43.4]} 11... Rab8 {[%clk 0:02:43.2]} 12. a4 {[%clk 0:02:40.6]} 12...
h6 {[%clk 0:02:40.2]} 13. Rfe1 {[%clk 0:02:40.6]} 13... Rfc8 {[%clk 0:02:40.2]}
14. Bf1 {[%clk 0:02:40.1]} 14... Nd7 {[%clk 0:02:40.4]} 15. a5 {[%clk
0:02:39.3]} 15... b5 {[%clk 0:02:26.3]} 16. axb6 {[%clk 0:02:37.8]} 16... Rxb6
{[%clk 0:02:25.8]} 17. Qa2 {[%clk 0:02:36.3]} 17... a5 {[%clk 0:02:23.2]} 18.
Rec1 {[%clk 0:01:49.1]} 18... Ra8 {[%clk 0:02:07.9]} 19. b4 {[%clk 0:01:39.5]}
19... Rab8 {[%clk 0:01:45]} 20. bxa5 {[%clk 0:01:30.6]} 20... Rb2 {[%clk
0:01:40]} 21. Qa3 {[%clk 0:01:28.7]} 21... Qc7 {[%clk 0:01:13.8]} 22. c4 {[%clk
0:01:23.2]} 22... dxc4 {[%clk 0:00:41]} 23. Nxc4 {[%clk 0:01:24.1]} 23... R2b3
{[%clk 0:00:24.7]} 24. Qd6 {[%clk 0:01:15.7]} 24... Qxd6 {[%clk 0:00:17.7]} 25.
Nxd6 {[%clk 0:01:16.6]} 25... Nb4 {[%clk 0:00:08.9]} 26. a6 {[%clk 0:01:11]}
26... Bc2 {[%clk 0:00:05.1]} 27. a7 {[%clk 0:01:04.8]} 27... Ra8 {[%clk
0:00:05.3]} 28. Nb5 {[%clk 0:01:05.2]} 1-0

[Event "*** Titled Tuesday Blitz"]
[Site "Chess.com"]
[Date "2020.12.29"]
[Round "6"]
[White "Mambastik-Fantastic"]
[Black "Makswolf200817"]
[Result "0-1"]
[WhiteElo "2222"]
[BlackElo "2430"]
[TimeControl "180+1"]
[EndTime "11:04:59 PST"]
[Termination "Makswolf200817 won by checkmate"]

1. e4 {[%clk 0:03:00.9]} 1... e6 {[%clk 0:02:59.3]} 2. d4 {[%clk 0:03:00.2]}
2... d5 {[%clk 0:02:58.7]} 3. Nc3 {[%clk 0:02:57.8]} 3... Bb4 {[%clk 0:02:57.7]}
4. e5 {[%clk 0:02:57.5]} 4... c5 {[%clk 0:02:57.2]} 5. a3 {[%clk 0:02:57.5]}
5... Bxc3+ {[%clk 0:02:56.3]} 6. bxc3 {[%clk 0:02:57.3]} 6... Qa5 {[%clk
0:02:56.8]} 7. Bd2 {[%clk 0:02:56.4]} 7... Qa4 {[%clk 0:02:56.5]} 8. Qg4 {[%clk
0:02:55.9]} 8... Kf8 {[%clk 0:02:56]} 9. Qd1 {[%clk 0:02:54.4]} 9... Ne7 {[%clk
0:02:55]} 10. Nf3 {[%clk 0:02:54.3]} 10... Nbc6 {[%clk 0:02:54.6]} 11. Be3
{[%clk 0:02:27.2]} 11... c4 {[%clk 0:02:45.3]} 12. Be2 {[%clk 0:02:26.3]} 12...
Bd7 {[%clk 0:02:43]} 13. h4 {[%clk 0:02:25.7]} 13... Ke8 {[%clk 0:02:42.5]} 14.
h5 {[%clk 0:02:25.2]} 14... h6 {[%clk 0:02:42.9]} 15. Kf1 {[%clk 0:02:25.1]}
15... Kd8 {[%clk 0:02:42.6]} 16. Qb1 {[%clk 0:02:21]} 16... Kc7 {[%clk
0:02:42.1]} 17. Ra2 {[%clk 0:02:17.6]} 17... Raf8 {[%clk 0:02:40.6]} 18. Bf4
{[%clk 0:02:12.7]} 18... Kc8 {[%clk 0:02:39.2]} 19. g4 {[%clk 0:02:06.2]} 19...
f6 {[%clk 0:02:35.7]} 20. exf6 {[%clk 0:02:03.2]} 20... Rxf6 {[%clk 0:02:34.9]}
21. Be5 {[%clk 0:01:59.1]} 21... Rf7 {[%clk 0:02:28.9]} 22. Kg2 {[%clk
0:01:57.4]} 22... Rhf8 {[%clk 0:02:28.2]} 23. Bg3 {[%clk 0:01:53.5]} 23... Ng8
{[%clk 0:02:18.6]} 24. Bd6 {[%clk 0:01:49.1]} 24... Re8 {[%clk 0:02:16.4]} 25.
g5 {[%clk 0:01:48.1]} 25... hxg5 {[%clk 0:02:14.6]} 26. Nxg5 {[%clk 0:01:48.2]}
26... Rf5 {[%clk 0:02:14.4]} 27. f4 {[%clk 0:01:31.7]} 27... Nf6 {[%clk
0:02:11.1]} 28. h6 {[%clk 0:01:30]} 28... gxh6 {[%clk 0:02:06.2]} 29. Rxh6
{[%clk 0:01:29.7]} 29... Rg8 {[%clk 0:02:05.6]} 30. Kh1 {[%clk 0:00:57.6]} 30...
Ne8 {[%clk 0:01:48.5]} 31. Be5 {[%clk 0:00:47.1]} 31... Nxe5 {[%clk 0:01:47.6]}
32. dxe5 {[%clk 0:00:47.1]} 32... Rxf4 {[%clk 0:01:46.9]} 33. Qc1 {[%clk
0:00:43]} 33... Rf5 {[%clk 0:01:40.9]} 34. Nxe6 {[%clk 0:00:40.2]} 34... Rxe5
{[%clk 0:01:36.2]} 35. Nc5 {[%clk 0:00:31.3]} 35... Qb5 {[%clk 0:01:35.2]} 36.
Nxd7 {[%clk 0:00:25.2]} 36... Rxe2 {[%clk 0:01:31.7]} 37. Rh7 {[%clk 0:00:14]}
37... Re4 {[%clk 0:01:22.6]} 38. Ra1 {[%clk 0:00:13.3]} 38... Qxd7 {[%clk
0:01:21.2]} 39. Rxd7 {[%clk 0:00:10.7]} 39... Rh4# {[%clk 0:01:20.9]} 0-1

[Event "*** Titled Tuesday Blitz"]
[Site "Chess.com"]
[Date "2020.12.29"]
[Round "6"]
[White "Abdoabedov"]
[Black "Zemerovv"]
[Result "0-1"]
[WhiteElo "1992"]
[BlackElo "2176"]
[TimeControl "180+1"]
[EndTime "11:05:01 PST"]
[Termination "Zemerovv won by checkmate"]

1. b3 {[%clk 0:03:00.9]} 1... g6 {[%clk 0:03:00.9]} 2. Bb2 {[%clk 0:03:00.4]}
2... Nf6 {[%clk 0:02:58.2]} 3. Bxf6 {[%clk 0:03:00.7]} 3... exf6 {[%clk
0:02:57.2]} 4. c4 {[%clk 0:03:01.2]} 4... Bg7 {[%clk 0:02:57]} 5. Nc3 {[%clk
0:03:01.7]} 5... f5 {[%clk 0:02:56.9]} 6. Rc1 {[%clk 0:02:59.3]} 6... O-O {[%clk
0:02:57.8]} 7. g3 {[%clk 0:02:58.6]} 7... d6 {[%clk 0:02:57.6]} 8. Bg2 {[%clk
0:02:58.9]} 8... c6 {[%clk 0:02:56.3]} 9. e3 {[%clk 0:02:59.2]} 9... Na6 {[%clk
0:02:54.3]} 10. Nge2 {[%clk 0:02:56]} 10... Nb4 {[%clk 0:02:53.5]} 11. d4 {[%clk
0:02:53.7]} 11... c5 {[%clk 0:02:50.6]} 12. O-O {[%clk 0:02:51.4]} 12... cxd4
{[%clk 0:02:50.1]} 13. Nxd4 {[%clk 0:02:46.9]} 13... Bd7 {[%clk 0:02:44.4]} 14.
a3 {[%clk 0:02:41.8]} 14... Nc6 {[%clk 0:02:43.2]} 15. Ndb5 {[%clk 0:02:31.4]}
15... f4 {[%clk 0:02:33.7]} 16. exf4 {[%clk 0:02:23]} 16... g5 {[%clk
0:02:30.5]} 17. fxg5 {[%clk 0:02:17.8]} 17... Qxg5 {[%clk 0:02:30.2]} 18. Qxd6
{[%clk 0:02:07.6]} 18... Rad8 {[%clk 0:02:24.1]} 19. Qd5 {[%clk 0:02:00.4]}
19... Bf5 {[%clk 0:02:22.5]} 20. Qf3 {[%clk 0:01:51.4]} 20... a6 {[%clk
0:02:20.3]} 21. Nc7 {[%clk 0:01:46.4]} 21... Nd4 {[%clk 0:02:18.6]} 22. Qxb7
{[%clk 0:01:34.4]} 22... Rb8 {[%clk 0:02:12.5]} 23. Qxa6 {[%clk 0:01:28]} 23...
Rxb3 {[%clk 0:02:10.9]} 24. Rfe1 {[%clk 0:01:10.5]} 24... Nc2 {[%clk 0:01:53.7]}
25. Red1 {[%clk 0:01:03.5]} 25... Rxc3 {[%clk 0:01:51.4]} 26. Nd5 {[%clk
0:00:57.8]} 26... Bg6 {[%clk 0:01:38.1]} 27. a4 {[%clk 0:00:53.8]} 27... Qe5
{[%clk 0:01:25.8]} 28. Nxc3 {[%clk 0:00:49.9]} 28... Qxc3 {[%clk 0:01:25.2]} 29.
a5 {[%clk 0:00:40.9]} 29... Bh6 {[%clk 0:01:23.9]} 30. Rb1 {[%clk 0:00:38.5]}
30... Nb4 {[%clk 0:01:22.4]} 31. Qb5 {[%clk 0:00:32.7]} 31... Bxb1 {[%clk
0:01:21.6]} 32. Rxb1 {[%clk 0:00:32.2]} 32... Nd3 {[%clk 0:01:20.2]} 33. a6
{[%clk 0:00:28.4]} 33... Nxf2 {[%clk 0:01:18.6]} 34. Kxf2 {[%clk 0:00:22.1]}
34... Be3+ {[%clk 0:01:13.8]} 35. Kf1 {[%clk 0:00:21.8]} 35... Qd3+ {[%clk
0:01:12.9]} 36. Ke1 {[%clk 0:00:16.8]} 36... Qd2+ {[%clk 0:01:12.5]} 37. Kf1
{[%clk 0:00:15.9]} 37... Qf2# {[%clk 0:01:11.9]} 0-1

[Event "*** Titled Tuesday Blitz"]
[Site "Chess.com"]
[Date "2020.12.29"]
[Round "6"]
[White "Koalaskakistis"]
[Black "esteban062000"]
[Result "1-0"]
[WhiteElo "2367"]
[BlackElo "2191"]
[TimeControl "180+1"]
[EndTime "11:05:03 PST"]
[Termination "Koalaskakistis won by resignation"]

1. e4 {[%clk 0:03:00.9]} 1... c5 {[%clk 0:02:57]} 2. Nf3 {[%clk 0:02:58.4]} 2...
g6 {[%clk 0:02:56.9]} 3. h4 {[%clk 0:02:57]} 3... Nc6 {[%clk 0:02:46.3]} 4. h5
{[%clk 0:02:55.7]} 4... Bg7 {[%clk 0:02:46.6]} 5. Nc3 {[%clk 0:02:52.6]} 5... d6
{[%clk 0:02:46.3]} 6. Bc4 {[%clk 0:02:51.6]} 6... Be6 {[%clk 0:02:32.1]} 7. Bxe6
{[%clk 0:02:47.1]} 7... fxe6 {[%clk 0:02:33]} 8. hxg6 {[%clk 0:02:45.3]} 8...
hxg6 {[%clk 0:02:32.7]} 9. Rxh8 {[%clk 0:02:46.2]} 9... Bxh8 {[%clk 0:02:33.5]}
10. Ng5 {[%clk 0:02:47.1]} 10... Nd4 {[%clk 0:02:11.7]} 11. Ne2 {[%clk
0:02:46.1]} 11... Qd7 {[%clk 0:02:05.6]} 12. Nxd4 {[%clk 0:02:45.1]} 12... Bxd4
{[%clk 0:02:05.5]} 13. Qg4 {[%clk 0:02:44.8]} 13... Nf6 {[%clk 0:01:49.7]} 14.
Qxe6 {[%clk 0:02:42.8]} 14... O-O-O {[%clk 0:01:36.1]} 15. d3 {[%clk 0:02:26.4]}
15... Rh8 {[%clk 0:01:32.5]} 16. Qxd7+ {[%clk 0:02:14.4]} 16... Kxd7 {[%clk
0:01:28.7]} 17. Nh3 {[%clk 0:02:15.3]} 17... Ng4 {[%clk 0:01:15.1]} 18. c3
{[%clk 0:02:04.5]} 18... Bf6 {[%clk 0:01:12.7]} 19. Ke2 {[%clk 0:02:01.4]} 19...
c4 {[%clk 0:00:48.4]} 20. dxc4 {[%clk 0:01:54.4]} 20... Ne5 {[%clk 0:00:47]} 21.
b3 {[%clk 0:01:51.7]} 21... Nf7 {[%clk 0:00:36.6]} 22. Bd2 {[%clk 0:01:49.7]}
22... g5 {[%clk 0:00:36]} 23. f3 {[%clk 0:01:49.8]} 23... g4 {[%clk 0:00:29.8]}
24. fxg4 {[%clk 0:01:49.1]} 24... Rh4 {[%clk 0:00:29.9]} 25. Nf2 {[%clk
0:01:42.2]} 25... Rh2 {[%clk 0:00:17.9]} 26. Rh1 {[%clk 0:01:39]} 26... Rxg2
{[%clk 0:00:17.2]} 27. Kf3 {[%clk 0:01:39]} 27... Rxf2+ {[%clk 0:00:08.1]} 28.
Kxf2 {[%clk 0:01:38.4]} 28... Bg5 {[%clk 0:00:07.1]} 29. Bxg5 {[%clk 0:01:34.8]}
29... Nxg5 {[%clk 0:00:08]} 30. Ke3 {[%clk 0:01:34.5]} 30... Ke6 {[%clk
0:00:06.9]} 31. Kf4 {[%clk 0:01:32]} 31... Nf7 {[%clk 0:00:07.3]} 32. g5 {[%clk
0:01:32]} 32... Ne5 {[%clk 0:00:07.2]} 33. Rh6+ {[%clk 0:01:31.5]} 33... Kf7
{[%clk 0:00:07.7]} 34. Kf5 {[%clk 0:01:30.9]} 34... Nf3 {[%clk 0:00:07.4]} 35.
Rh7+ {[%clk 0:01:30]} 35... Kf8 {[%clk 0:00:07.1]} 36. g6 {[%clk 0:01:29.3]}
36... Ne5 {[%clk 0:00:07.4]} 37. c5 {[%clk 0:01:19.2]} 37... Nd7 {[%clk
0:00:06.7]} 38. cxd6 {[%clk 0:01:18.5]} 38... exd6 {[%clk 0:00:07.6]} 39. Rxd7
{[%clk 0:01:17.9]} 1-0

[Event "*** Titled Tuesday Blitz"]
[Site "Chess.com"]
[Date "2020.12.29"]
[Round "6"]
[White "chessdjw"]
[Black "stasiek18"]
[Result "1-0"]
[WhiteElo "2614"]
[BlackElo "2381"]
[TimeControl "180+1"]
[EndTime "11:05:06 PST"]
[Termination "chessdjw won by resignation"]

1. d4 {[%clk 0:03:00.9]} 1... Nf6 {[%clk 0:02:59.4]} 2. Nf3 {[%clk 0:02:59.9]}
2... g6 {[%clk 0:02:59.3]} 3. c4 {[%clk 0:02:57.8]} 3... Bg7 {[%clk 0:03:00.2]}
4. Nc3 {[%clk 0:02:51.7]} 4... d5 {[%clk 0:03:00]} 5. cxd5 {[%clk 0:02:51.8]}
5... Nxd5 {[%clk 0:03:00.9]} 6. e4 {[%clk 0:02:51.1]} 6... Nxc3 {[%clk
0:03:01.1]} 7. bxc3 {[%clk 0:02:52]} 7... c5 {[%clk 0:03:01.9]} 8. Rb1 {[%clk
0:02:51.5]} 8... O-O {[%clk 0:03:00]} 9. Be2 {[%clk 0:02:51.9]} 9... cxd4 {[%clk
0:02:59.9]} 10. cxd4 {[%clk 0:02:52.8]} 10... Qa5+ {[%clk 0:03:00.3]} 11. Qd2
{[%clk 0:02:52.6]} 11... Qxd2+ {[%clk 0:02:51.8]} 12. Bxd2 {[%clk 0:02:53.5]}
12... b6 {[%clk 0:02:37.8]} 13. O-O {[%clk 0:02:45.2]} 13... Bb7 {[%clk
0:02:37.4]} 14. d5 {[%clk 0:02:44.3]} 14... Nd7 {[%clk 0:02:10.6]} 15. Bb4
{[%clk 0:02:34.2]} 15... Rac8 {[%clk 0:01:51.4]} 16. Bxe7 {[%clk 0:02:17.2]}
16... Rfe8 {[%clk 0:01:51.2]} 17. d6 {[%clk 0:02:17.4]} 17... Bxe4 {[%clk
0:01:51.4]} 18. Bb5 {[%clk 0:02:05]} 18... Bxb1 {[%clk 0:01:05.5]} 19. Bxd7
{[%clk 0:02:04.3]} 19... Bf5 {[%clk 0:01:05.4]} 20. Bxf5 {[%clk 0:02:01.6]}
20... Rxe7 {[%clk 0:00:54]} 21. Bxc8 {[%clk 0:02:01.2]} 21... Re2 {[%clk
0:00:51.8]} 22. g3 {[%clk 0:01:34.7]} 22... Rxa2 {[%clk 0:00:51.1]} 23. d7
{[%clk 0:01:27.2]} 23... Bf6 {[%clk 0:00:51.2]} 24. Re1 {[%clk 0:01:27.7]} 24...
a5 {[%clk 0:00:43.9]} 25. d8=Q+ {[%clk 0:01:19.8]} 25... Bxd8 {[%clk 0:00:44]}
26. Re8+ {[%clk 0:01:19.3]} 26... Kg7 {[%clk 0:00:44.9]} 27. Rxd8 {[%clk
0:01:20.2]} 27... a4 {[%clk 0:00:42.4]} 28. Rd7 {[%clk 0:01:02]} 28... Rc2
{[%clk 0:00:33.8]} 29. Bb7 {[%clk 0:00:55.4]} 29... a3 {[%clk 0:00:32.4]} 30.
Bd5 {[%clk 0:00:55.1]} 30... a2 {[%clk 0:00:26.8]} 31. Rxf7+ {[%clk 0:00:55.1]}
31... Kh6 {[%clk 0:00:24.2]} 32. Bxa2 {[%clk 0:00:53.6]} 32... Rxa2 {[%clk
0:00:23.7]} 33. h4 {[%clk 0:00:52.8]} 1-0

[Event "*** Titled Tuesday Blitz"]
[Site "Chess.com"]
[Date "2020.12.29"]
[Round "6"]
[White "azikom"]
[Black "PowerThinking2650"]
[Result "1-0"]
[WhiteElo "2615"]
[BlackElo "2423"]
[TimeControl "180+1"]
[EndTime "11:05:07 PST"]
[Termination "azikom won on time"]

1. d4 {[%clk 0:02:58.9]} 1... Nf6 {[%clk 0:02:59.7]} 2. Nf3 {[%clk 0:02:58.2]}
2... g6 {[%clk 0:02:59.9]} 3. c4 {[%clk 0:02:57.9]} 3... Bg7 {[%clk 0:03:00.1]}
4. Nc3 {[%clk 0:02:58.5]} 4... O-O {[%clk 0:03:00.3]} 5. Bg5 {[%clk 0:02:58.1]}
5... d6 {[%clk 0:02:50.6]} 6. e3 {[%clk 0:02:57.8]} 6... c5 {[%clk 0:02:48]} 7.
Bh4 {[%clk 0:02:55.5]} 7... cxd4 {[%clk 0:02:45.9]} 8. exd4 {[%clk 0:02:55.2]}
8... Nc6 {[%clk 0:02:45.1]} 9. Be2 {[%clk 0:02:54.7]} 9... Qb6 {[%clk
0:02:34.3]} 10. Qd2 {[%clk 0:02:50.2]} 10... e5 {[%clk 0:02:33.2]} 11. Bxf6
{[%clk 0:02:47.5]} 11... Bxf6 {[%clk 0:02:31.2]} 12. Nd5 {[%clk 0:02:47.7]}
12... Qd8 {[%clk 0:02:31.4]} 13. dxe5 {[%clk 0:02:47.6]} 13... dxe5 {[%clk
0:02:23.1]} 14. Rd1 {[%clk 0:02:15.2]} 14... Bg7 {[%clk 0:02:10.7]} 15. O-O
{[%clk 0:02:03.3]} 15... e4 {[%clk 0:02:06.9]} 16. Ne1 {[%clk 0:01:57.2]} 16...
f5 {[%clk 0:01:46.5]} 17. b4 {[%clk 0:01:51.9]} 17... Qh4 {[%clk 0:01:26.2]} 18.
g3 {[%clk 0:01:49.7]} 18... Qd8 {[%clk 0:01:08.6]} 19. Nc2 {[%clk 0:01:42.3]}
19... Be6 {[%clk 0:00:50.5]} 20. b5 {[%clk 0:01:41.7]} 20... Ne5 {[%clk
0:00:50.2]} 21. Qb4 {[%clk 0:01:34]} 21... Rf7 {[%clk 0:00:25.9]} 22. Nf4 {[%clk
0:01:33.5]} 22... Qf6 {[%clk 0:00:22.8]} 23. Ne3 {[%clk 0:01:24.3]} 23... Bd7
{[%clk 0:00:16]} 24. Qd6 {[%clk 0:01:17.5]} 24... Qxd6 {[%clk 0:00:14.4]} 25.
Rxd6 {[%clk 0:01:17]} 25... Bf8 {[%clk 0:00:13.1]} 26. Rd5 {[%clk 0:01:16.8]}
26... Re8 {[%clk 0:00:12]} 27. Rfd1 {[%clk 0:01:14.3]} 27... Bc8 {[%clk
0:00:11.1]} 28. h4 {[%clk 0:01:11.5]} 28... b6 {[%clk 0:00:07.7]} 29. Rd8 {[%clk
0:01:11]} 29... Rxd8 {[%clk 0:00:06.8]} 30. Rxd8 {[%clk 0:01:10.6]} 30... Bb7
{[%clk 0:00:05.8]} 31. Ne6 {[%clk 0:01:09.2]} 31... h6 {[%clk 0:00:03.8]} 32.
Rb8 {[%clk 0:01:08.7]} 1-0